Cogmind - Beta 16.1 @@@ ROGUE MODE // 2026.04.09 @ 20:54:59 Player: SunShine214 Result: Destroyed by S3-1X0(j) with Overtuned Pulse Rifle Performance ------------- Evolutions (0) 0 Regions Visited (3) 600 Robots Destroyed (25) 125 Value Destroyed (607) 607 Prototype IDs (13) 260 Alien Tech Used (0) 0 Bonus (0) 0 TOTAL SCORE: 1592 Bonus ------- None Cogmind --------- Core Integrity 0/250 Matter 289/300 Energy 81/265 System Corruption 5% Temperature Warning (321) Movement Treading (160) Location -9/Recycling Parts ------- > --- POWER (1) -------- Improved Ion Engine > --- PROPULSION (2) --- Light Treads Light Treads > --- UTILITY (2) ------ Large Storage Unit Sensor Array > --- WEAPON (2) ------- Subdweller Beam Cannon Light Assault Rifle > --- INVENTORY (15) --- Flight Unit Flight Unit Subdweller Optics Makeshift Terrain Scan Processor Tower Shield Subdweller Laser Subdweller Beam Cannon 1B-0RG's Assimilator Peak State ------------ > --- POWER ------------ Subdweller Power Source > --- PROPULSION ------- Light Treads Spiked Treads > --- UTILITY ---------- Large Storage Unit Subdweller Optics > --- WEAPON ----------- Subdweller Laser Flamer > --- INVENTORY -------- Flight Unit Flight Unit Sensor Array Tower Shield Subdweller Beam Cannon Light Assault Rifle 1B-0RG's Assimilator [Rating: 21] Favorites ----------- Power Light Ion Engine Engine Light Ion Engine Propulsion Light Treads Treads Light Treads Flight Unit Flight Unit Utility Sensor Array Device Sensor Array Storage Large Storage Unit Weapon Subdweller Beam Cannon Energy Gun Particle Gun Energy Cannon Subdweller Beam Cannon Ballistic Gun Light Assault Rifle Launcher Grenade Launcher Special Weapon Mining Laser Build | -11 -10 -10 -9 ------- Run | Yrd Mat Sub Rec Slots Evolved . | . . . . Power . | . . . . Propulsion . | . . . . Utility . | . . . . Weapon . | . . . . Parts Attached 34 | 8 9 9 8 Power 7 | 1 1 2 3 Engine 7 | 1 1 2 3 Core . | . . . . Reactor . | . . . . Propulsion 8 | 2 3 1 2 Treads 6 | 2 1 1 2 Leg . | . . . . Wheel . | . . . . Hover . | . . . . Flight 2 | . 2 . . Utility 6 | 2 2 2 . Device 3 | 1 1 1 . Storage 3 | 1 1 1 . Processor . | . . . . Hackware . | . . . . Protection . | . . . . Artifact . | . . . . Weapon 13 | 3 3 4 3 Energy Gun 6 | 3 1 1 1 Energy Cannon 2 | . . 2 . Ballistic Gun 1 | . 1 . . Ballistic Cannon . | . . . . Launcher 2 | . . . 2 Special Weapon 2 | . 1 1 . Impact Weapon . | . . . . Slashing Weapon . | . . . . Piercing Weapon . | . . . . Special Melee Weapon . | . . . . Unidentified Prototypes . | . . . . Corrupted Parts 1 | . . . 1 System Corruption 4 | . . . 4 Parts Lost 15 | . 5 4 6 Power 3 | . 1 1 1 Propulsion 4 | . 2 . 2 Utility . | . . . . Weapon 8 | . 2 3 3 Highest Loss Streak 5 | . 5 1 4 To Critical Strikes . | . . . . Average Backups 5 | . 3 5 9 Power . | . . . . Propulsion 1 | . . 1 2 Utility 1 | . 2 1 2 Weapon 1 | . 1 1 3 Tool/Special . | . . . . Unused Backups 4 | . . 1 3 Power . | . . . . Propulsion . | . . . . Utility 3 | . . 1 2 Weapon . | . . . . Tool/Special 1 | . . . 1 Average Slot Usage (%) 84 | . 93 80 89 Engine 12 | . 11 12 12 Treads 18 | . 23 15 25 Flight 8 | . 2 12 . Device 15 | . 14 16 14 Storage 8 | . 13 4 14 Energy Gun 9 | . 17 8 4 Energy Cannon 5 | . . 4 12 Ballistic Gun 1 | . 3 . . Special Weapon 2 | . 5 3 . Peak Build Rating 21 | 9 10 21 20 Average Rating 11 | 6 8 11 17 On Entrance 8 | . 9 7 18 Avg Prop Armor Cover (%) 16 | . 16 . . Naked Turns . | . . . . Heaviest Build 37 | 12 27 35 37 Greatest Support 40 | 40 40 40 40 Greatest Overweight (x) 12 | . 8 1 12 Average Overweight (x) . | . . . . Largest Inventory Capacity 15 | 8 15 15 15 Average Capacity 10 | 7 14 8 15 Most Carried 15 | 1 5 14 15 Average Carried 7 | . 3 7 14 Final Capacity 15 | 8 5 15 15 Final Carried 14 | 1 5 14 13 Class Distribution -------------------- 65% | Mutant 34% | Scavenger-Mutant Dominant Class ---------------- Mutant | -10/Materials Mutant | -10/Subcaves Mutant | -9/Recycling Resources | -11 -10 -10 -9 ----------- Run | Yrd Mat Sub Rec Matter Collected 778 | 280 56 262 180 Remotely . | . . . . Salvage Created 1014 | 145 201 238 430 Parts 52 | 7 16 10 19 Haulers Intercepted . | . . . . Recyclers Shooed 2 | . 1 . 1 Parts Field Recycled . | . . . . Retrieved Matter . | . . . . Parts Self-Destructed 7 | . . 7 . Prevented . | . . . . Parts Restored . | . . . . Kills | -11 -10 -10 -9 ------- Run | Yrd Mat Sub Rec Combat Hostiles Destroyed 15 | . 6 6 3 Guns 8 | . 5 3 . Cannons 6 | . . 3 3 AOE 1 | . 1 . . Classes Destroyed 10 | 2 3 1 4 Worker 1 | . 1 . . Builder 1 | . . . 1 Tunneler 3 | 3 . . . Recycler 5 | 1 . . 4 Swarmer 3 | . 3 . . Grunt 5 | . 3 2 . Sentry 1 | . . . 1 Programmer 1 | . . . 1 Subdweller 4 | . . 4 . Scrapper 1 | . . . 1 Best Kill Streak 7 | 4 3 2 7 Combat Bots Only 3 | . 3 2 2 Max Kills in Single Turn 5 | 1 1 1 5 Gunslinging . | . . . . Exploded 1 | . 1 . . Melee . | . . . . Uniques/NPCs Destroyed . | . . . . Combat | -11 -10 -10 -9 -------- Run | Yrd Mat Sub Rec Hostile Shots Fired 149 | . 61 60 28 Missed 47 | . 12 27 8 Hits 102 | . 49 33 20 Projectile 102 | . 49 33 20 Critical Strikes 5 | . 1 2 2 Damage Taken 1643 | 20 594 609 420 Core 255 | . 98 88 69 Absorbed by Shields . | . . . . Core Remaining (%) 100 | 100 . . . Volleys Fired 105 | 6 27 61 11 Largest 2 | 2 2 2 2 Hottest 165 | 80 140 165 140 Shots Fired 158 | 12 46 82 18 Gun 93 | 12 45 31 5 Cannon 47 | . . 38 9 Launcher 4 | . . . 4 Special 14 | . 1 13 . Kinetic 20 | . 11 6 3 Thermal 112 | 6 19 76 11 Explosive 3 | . . . 3 Electromagnetic 23 | 6 16 . 1 Robot Hit Streak 19 | 5 3 19 4 Robot Miss Streak 3 | 1 3 2 3 Penetration Max . | . . . . Secondary Targets 1 | . 1 . . Max Gunslinging Chain 1 | . 1 . . Shots Hit Robots 66 | 9 25 23 9 Core Hits 39 | 5 12 8 14 Critical Kills . | . . . . Critical Parts Destroyed . | . . . . Critical Strikes 1 | . . 1 . Burn 1 | . . 1 . Melee Attacks . | . . . . Impact . | . . . . Slashing . | . . . . Piercing . | . . . . Sneak Attacks . | . . . . Combat Hostiles . | . . . . Follow-up Attacks . | . . . . Damage Inflicted 1441 | 130 387 451 473 Guns 645 | 97 304 211 33 Cannons 366 | . . 197 169 Explosions 374 | 28 83 . 263 Melee . | . . . . Ramming 13 | 5 . . 8 Kinetic 72 | . 62 10 . Thermal 919 | 73 203 441 202 Explosive 256 | . . . 256 Electromagnetic 181 | 52 122 . 7 Impact . | . . . . Slashing . | . . . . Piercing . | . . . . Highest Corruption 5 | . . . 5 Average Corruption 4 | . . . 4 Corruption Purged . | . . . . Corruption Blocked . | . . . . Effects 9 | . . . 9 Message Errors 2 | . . . 2 Matter Fused 2 | . . . 2 Heat Flow Errors 2 | . . . 2 Data Loss (minor) 1 | . . . 1 Data Loss (major) 1 | . . . 1 Weapon Failures 1 | . . . 1 Overload Shots . | . . . . Overflow Damage 18 | . 1 . 17 Projectiles 17 | . . . 17 Explosions 1 | . 1 . . Melee . | . . . . Knockbacks . | . . . . Impact . | . . . . Kinetic . | . . . . Secondary . | . . . . Self-Inflicted Damage 51 | 21 . . 30 Shots 2 | 1 . . 1 Rammed 5 | 3 . . 2 Targets Rammed 5 | 3 . . 2 Kicked . | . . . . Crushed . | . . . . Highest Temperature 288 | 72 288 84 284 Average Temperature 94 | 31 131 20 114 Received Heat Transfer 707 | . 327 168 212 Siege Activations . | . . . . Martial Activations . | . . . . Shielding Activations . | . . . . Robots Disrupted . | . . . . Combat Hostiles . | . . . . Robots Corrupted . | . . . . Combat Hostiles . | . . . . Parts Fried . | . . . . Impact Corruptions . | . . . . Robots Melted . | . . . . Combat Hostiles . | . . . . Parts Melted 1 | . . 1 . Heat Transferred 1843 | 150 425 1062 206 Parts Sabotaged . | . . . . Parts Stolen . | . . . . Parts Stripped . | . . . . Power Chain Reactions 2 | 1 1 . . Alert | -11 -10 -10 -9 ------- Run | Yrd Mat Sub Rec Maximum Alert Level . | . . . . Low Security (%) 100 | 100 100 . 100 Level 1 . | . . . . Level 2 . | . . . . Level 3 . | . . . . Level 4 . | . . . . Level 5 . | . . . . High Security . | . . . . Max Security . | . . . . Peak Influence 83 | 15 83 . 52 Initial 14 | . . . 14 Average 13 | 2 24 . 7 Influence Increases 488 | 20 173 200 95 Destroy 0b10 Robot/C 200 | . 120 40 40 Destroy 0b10 Robot/NC 55 | 20 5 . 30 Destroy Leader 40 | . 30 10 . Disable Machine 15 | . 15 . . Destroy Structure 28 | . 3 . 25 Lose Combat Pursuer 150 | . . 150 . Influence Decreases 488 | 20 145 198 125 Entered New Map 30 | . . 14 16 Time Decay 376 | 20 95 177 84 Lost Part 82 | . 50 7 25 Squads Dispatched 1 | . 1 . . Investigation . | . . . . Extermination . | . . . . Reinforcement 1 | . 1 . . Assault . | . . . . Garrison . | . . . . Intercept . | . . . . Searches Triggered . | . . . . Construction Impeded . | . . . . Haulers Reinforced . | . . . . Active Scanning Responses . | . . . . Cargo Convoy Interrupts . | . . . . Stealth | -11 -10 -10 -9 --------- Run | Yrd Mat Sub Rec Distress Signals 2 | . 1 . 1 Communications Jammed . | . . . . Distress Signals . | . . . . Times Spotted 36 | . 10 21 5 Peak Tracking Total 4 | . 4 4 4 Tactical Retreats 9 | . . 9 . Traps | -11 -10 -10 -9 ------- Run | Yrd Mat Sub Rec Traps Triggered . | . . . . Indirectly . | . . . . Trap Hack Attempts . | . . . . Triggered . | . . . . Disarmed . | . . . . Reprogrammed . | . . . . Reused . | . . . . Traps Extracted . | . . . . Installed . | . . . . Triggered . | . . . . Machines | -11 -10 -10 -9 ---------- Run | Yrd Mat Sub Rec Machines Disabled 2 | . 1 1 . Max in Single Turn 1 | . 1 1 . Machines Repaired . | . . . . Machines Dismantled . | . . . . Machines Sabotaged . | . . . . Overloaded Fab Kills . | . . . . Hacking | -11 -10 -10 -9 --------- Run | Yrd Mat Sub Rec Machines Accessed 2 | . . 1 1 Terminals 1 | . . . 1 Fabricators . | . . . . Repair Stations . | . . . . Recycling Units . | . . . . Scanalyzers . | . . . . Garrison Access . | . . . . Total Hacks 2 | . . 1 1 Successful 1 | . . 1 . Failed 1 | . . . 1 Catastrophic 1 | . . . 1 Database Lockouts . | . . . . Manual . | . . . . Terminals 1 | . . . 1 Fabricators . | . . . . Repair Stations . | . . . . Recycling Units . | . . . . Scanalyzers . | . . . . Garrison Access . | . . . . Terminal Hacks 1 | . . 1 . Proto ID Catalog 1 | . . 1 . Fabricator Hacks . | . . . . Repair Station Hacks . | . . . . Recycling Unit Hacks . | . . . . Scanalyzer . | . . . . Garrison Access Hacks . | . . . . Unauthorized Hacks . | . . . . Terminals . | . . . . Fabricators . | . . . . Repair Stations . | . . . . Recycling Units . | . . . . Scanalyzers . | . . . . Garrison Access . | . . . . Data Cores Recovered . | . . . . Used . | . . . . Hacking Detections 1 | . . . 1 Full Trace Events . | . . . . Feedback Events . | . . . . Feedback Blocked . | . . . . Robot Schematics Acquired . | . . . . Robots Built . | . . . . Authchips . | . . . . Time . | . . . . Total Robot Build Rating . | . . . . Part Schematics Acquired . | . . . . Parts Built . | . . . . Authchips . | . . . . Time . | . . . . Total Part Build Rating . | . . . . Part Studies Acquired . | . . . . Parts Repaired . | . . . . Time . | . . . . Parts Recycled . | . . . . Recycled Matter . | . . . . Retrieved Matter . | . . . . Retrieved Components . | . . . . Parts Scanalyzed . | . . . . Part Schematics Acquired . | . . . . Parts Damaged . | . . . . Bothacking | -11 -10 -10 -9 ------------ Run | Yrd Mat Sub Rec Used RIF Installer . | . . . . Robots Hacked . | . . . . Non-combat . | . . . . Combat . | . . . . Robot Hacks Applied . | . . . . Relay Couplers Released . | . . . . Fabnet Peak Effective % . | . . . . Robots Rewired . | . . . . Allies Hacked . | . . . . Hacks Repelled . | . . . . Allies | -11 -10 -10 -9 -------- Run | Yrd Mat Sub Rec Total Allies . | . . . . Largest Group . | . . . . Highest-Rated Group . | . . . . Highest-Rated Ally . | . . . . Total Orders . | . . . . Ally Attacks . | . . . . Total Damage . | . . . . Kills . | . . . . Allies Corrupted . | . . . . Allies Melted . | . . . . Intel | -11 -10 -10 -9 ------- Run | Yrd Mat Sub Rec Active Infowar (turns) 2542 | 44 392 1572 534 Optics 421 | . . 421 . Sensors 1838 | . 8 1296 534 Terrain 429 | 44 385 . . Robot Analysis Total . | . . . . Derelict Logs Recovered 1 | . . 1 . Drone Launches . | . . . . Drone Recoveries . | . . . . Exploration | -11 -10 -10 -9 ------------- Run | Yrd Mat Sub Rec Turns Passed 2609 | 111 392 1572 534 Spaces Moved 2541 | 51 192 2021 277 Core 13 | 5 4 . 4 Treads 866 | 46 135 412 273 Legs . | . . . . Wheels . | . . . . Hover . | . . . . Flight 1662 | . 53 1609 . Fastest Speed 37 | 50 37 37 160 Average Speed 82 | 149 148 62 170 Slowest Speed 650 | 160 540 160 650 Overloaded Moves . | . . . . Propulsion Burnouts . | . . . . Robots Hopped 3 | . 3 . . Potential Cave-ins . | . . . . Cave-ins Triggered . | . . . . Exploration Rate (%) 46 | 4 36 93 54 Regions Visited 3 Branch Regions 2 Pre-discovered Areas . | . . . . Known Exits Taken . | . . . . Unknown Exits Taken 3 | 1 1 1 . Scrap Searched . | . . . . Spaces Dug 3 | . . 3 . Terrain Destroyed 35 | 3 3 3 26 Melee . | . . . . Projectile 6 | . . 3 3 AOE 29 | 3 3 . 23 Terrain Rammed . | . . . . Walls Destroyed . | . . . . Machines Disabled . | . . . . Actions | -11 -10 -10 -9 --------- Run | Yrd Mat Sub Rec Total 2857 | 68 247 2224 318 Wait 122 | . 14 100 8 Move 2533 | 51 185 2020 277 Hop 3 | . 3 . . Pick Up 15 | 1 5 7 2 Fast Attach 21 | 7 4 4 6 Attach 12 | . 2 6 4 Detach 8 | . 1 4 3 Swap 25 | 1 4 18 2 Drop 9 | . 2 4 3 Fire 105 | 6 27 61 11 Melee . | . . . . Ram . | . . . . Kick . | . . . . Crush 4 | 2 . . 2 Escape Stasis . | . . . . Rewire . | . . . . Trap . | . . . . Miscellaneous . | . . . . Route ------- -11/Scrapyard -10/Materials (discovered 3 exits: [*Min x2] / *Sub) -10/Subcaves (discovered 4 exits: [*Mat x2] / *Rec / [*Scr]) -9/Recycling (discovered 1 exit: [*Fac]) History --------- Turn | Location | Event 3 | -11/Scrapyard | Discovered new exit (range 15) 112 | -11/Scrapyard | Entered Materials 112 | -10/Materials | Discovered new exit (range 8) 302 | -10/Materials | Build established: Mutant 313 | -10/Materials | Discovered new exit (range 8) 447 | -10/Materials | Lost 5 parts (1p2n2w) 501 | -10/Materials | Discovered new exit (range 10) 504 | -10/Materials | Entered Subcaves 505 | -10/Subcaves | Approached by a straggling Scientist 521 | -10/Subcaves | Ambushed by Subdwellers from Twisted Machinery 703 | -10/Subcaves | Shifting Twisted Machinery released Sub. Beam Cannon 705 | -10/Subcaves | Shifting Twisted Machinery released Spk. Treads 739 | -10/Subcaves | Build established: Scavenger-Mutant 822 | -10/Subcaves | Learned Materials terminal intel 932 | -10/Subcaves | Core integrity fell below 50% 1186 | -10/Subcaves | Shifting Twisted Machinery released Sub. Machine Gun 1334 | -10/Subcaves | Discovered new exit (range 8) 1358 | -10/Subcaves | Shifting Twisted Machinery released Sub. Power Source 1451 | -10/Subcaves | Build established: Mutant 1454 | -10/Subcaves | Discovered new exit (range 14) 1518 | -10/Subcaves | Visited 4L-MR0's lab 1528 | -10/Subcaves | Found Prototype Special Melee Weapon 1534 | -10/Subcaves | Found Prototype Protection 1540 | -10/Subcaves | Identified Tower Shield 2069 | -10/Subcaves | Discovered new exit (range 5) 2076 | -10/Subcaves | Entered Recycling 2077 | -9/Recycling | Met a Zionite searching for Scraptown 2454 | -9/Recycling | Lost 4 parts (2n2w) 2536 | -9/Recycling | Discovered new exit (range 15) 2557 | -9/Recycling | Scanned before Scraplab entrance 2569 | -9/Recycling | Angered Scraplab inhabitants 2574 | -9/Recycling | Core integrity fell below 20% 2610 | -9/Recycling | Destroyed by S3-1X0(j) with Overtuned Pulse Rifle Last Messages --------------- always right, go on in. Not my problem as long as you don't touch anything in here. Just really don't mess with anything in there. Then it'll be my problem, and yours. 02572_ System corrupted: Sub. Beam Cannon failed to cycle. 02575_ Grenade Launcher destroyed. 02577_ System corrupted: Matter fused (-9). 02579_ U2-247(j) destroyed. 02579_ Sub. Laser shoots sparks and powers down. 02591_ Acquired 44 matter. 02594_ System corrupted: Heat flow error (+255). 02602_ U-05 Engineer lays Concrete. 02605_ S3-1X0(j): "Defend the Scraplab!" 02606_ Lgt. Ion Engine destroyed. 02607_ U-05 Engineer lays Concrete. 02609_ Critical hit (Burn: +50). 02610_ U-05 Engineer lays Concrete. 02610_ Critical hit (Burn: +50). Map ----- +----------------------------------------------------+ | ???????????????????????????????????? | | ???????????????????????????????????? | | ???????????????????????????????????? | | ???????????????????????????????????? | | ???????????????????????????????????? | | ???????????????????????????????????? | | #######????????????????????????????? | | #????????????????????????????? | | #????????????????????????????? | | #????????????????????????????? | | #??###???????????????????????? | | #?# ???????????????????????? | | = #?# < ???????????????????????? | | #?# ???????????????????????? | | #?# #??????????????????????? | | ]#?# #??????????????????????? | | !! #?# +??????????????????????? | | #?# #??????????????????????? | | ! #?# #??????????????????????? | | /######?# #??????????????????????? | | #?????# #?????????###??????????? | | #?????# #???????### ##?????????? | | #?????# #???????# ######????? | | #?????# #???????# u # ###??? | | #?????# ######### # #??? | | #?????# + @!j #?? | | #?????# ######### ; ! #??? | | #?????# #???????# #### j #??? | | #?????# #???????# #??## ##??? | | ?????# #???????######???? #???? | | !?????# #???####??????????/#???? | | !!????# #### # #?????????? ???? | | ##????# # #?????????? ???? | | ?????# # #??????????? ???? | | #?????# # #??????????? X??? | | #?????# # #??????????? ??? | | #?????# + #??????????? "??? | | #?????# # #??????????? ??? | | #?????# # #??????????? #??? | | ##????# # #????????????#??? | | ###### # #???????????????? | | # #???????????????? | | ###### # #???????????????? | | #???? # #???????????????? | | #???## # #???????????????? | | ##????# ######+#???????????????? | | #?????# #??????????????????????? | | #?????# #??????????????????????? | | #?????# #??????????????????????? | | #?????# #??????????????????????? | +----------------------------------------------------+ Best States ------------- Heat Dissipation 25 Energy Generation 15 Energy Capacity 265 Matter Stores 300 Matter Capacity 300 Sight Range 21 Robot Scan Range 14 Terrain Scan Range 16 Terrain Scan Density 10 Evasion (%) 62 Recoil Reduction 2 Item Schematics ----------------- None Robot Schematics ------------------ None Fabricated ------------ Nothing Repaired ---------- Nothing Studied --------- None Alien Tech Used ----------------- None Achievements -------------- None Challenges ------------ None Game ------ Seed ModifiedActiveAutohacker Manual? 0 Play Time 00:23:53 Cumulative 126.2 hours Start 2026.04.09 @ 20:32:32 End 2026.04.09 @ 20:54:59 Sessions 1 Manual Loads 0 Difficulty Rogue Special Mode None Game No. 193 Rogue 193 Adventurer 0 Explorer 0 Win Type - Total 1 Types 1/0/0/0/0/0/0/0/0/0 Lore% 50 Gallery% 53 Achievement% 40 Wizard Run 0 Options --------- Layout 1 ASCII 0 Keyboard 1 Movement Arrows Keybinds 0 Fullscreen 1 Font 24/Smallcaps Map View 50x35 Zoom Use 0% Tactical HUD 1 Map Filters NONE Filters NONE Steam 1 RUN: 7d2cae3e-002f-4438-8fa5-c066654aaf41